Workbook

Sheet Length of Shadow
B1: Length of a Shadow Problem
B3: This DIGMath module lets you investigate
B4: the related rates calculus problem of finding
B5: the rate dS/dt at which the length S
B6: of a person's shadow increases
B7: as the person walks away from a lamppost
C8: at a given rate.
A11: What is the height L of the lamppost (10 - 30 feet)?
D12: 10 | E12: =#REF!+D12*(#REF!-#REF!)/100 ->  | F12: =D12 -> 10
A14: How tall is the person H (60-75, in inches)?
D15: 68 | E15: =#REF!+D15*(#REF!-#REF!)/100 ->  | F15: =D15 -> 68
A17: How fast is the person walking (1 - 6 feet per second)?
D18: 3 | E18: =#REF!+D18*(#REF!-#REF!)/100 ->  | F18: =D18 -> 3
A22: Click each item below for suggestions and investigations | L22: Select the distance from the lamppost: x0 = | P22: =O23/5 -> 26.6 | Q22: feet | R22: Time = | S22: =x0/rate -> 8.9 | T22: seconds
C23: Item 1 | O23: 133 | P23: =Sheet2!#REF!+O23*(Sheet2!#REF!-Sheet2!#REF!)/100 -> 
C24: Item 2
C25: Item 3 | N25: The length of the shadow is | P25: =LOOKUP(x0+0.1,Sheet2!B3:B203,Sheet2!E3:E203) -> 61.4 | Q25: feet
C26: Item 4
L27: The length of the shadow is growing at a rate of | Q27: =Sheet2!F4 -> 2.3 | R27: feet per second
A29: To access/download all the DIGMath Apps for Calculus
A30: Click this link: | C30: DIGMath for Calculus
A32: Created by: Sheldon P. Gordon
A33: Farmingdale State College
A34: Development of this module was supported by the
A35: NSF's Division of Undergraduate Education
A36: under grants DUE-0310123 and DUE-0442160.

Sheet Tip of Shadow
B1: Length of a Shadow Problem
B3: This DIGMath module lets you investigate
B4: the related rates calculus problem of finding
B5: the rate at which the tip
B6: of a person's shadow moves
B7: as the person walks away from a lamppost
C8: at a given rate.
A11: What is the height L of the lamppost (10 - 20 feet)?
D12: 13 | E12: =#REF!+D12*(#REF!-#REF!)/100 ->  | F12: =D12 -> 13
A14: How tall is the person H (60-75, in inches)?
D15: 68 | E15: =#REF!+D15*(#REF!-#REF!)/100 ->  | F15: =D15 -> 68
A17: How fast is the person walking (1 - 6 feet per second)?
D18: 3 | E18: =#REF!+D18*(#REF!-#REF!)/100 ->  | F18: =D18 -> 3
A22: Click each item below for suggestions and investigations | K22: Select the distance from the lamppost: x0 = | O22: =N23/5 -> 25 | P22: feet | Q22: Time = | R22: =xx0/rate2 -> 8.3 | S22: seconds
C23: Item 1 | N23: 125 | O23: =Sheet2!#REF!+N23*(Sheet2!#REF!-Sheet2!#REF!)/100 -> 
C24: Item 2
C25: Item 3 | M25: The length of the shadow is | O25: =LOOKUP(xx0,Sheet2!B3:B203,Sheet2!E3:E203) -> 57.7 | P25: feet
C26: Item 4 | M26: The distance from the lamppost to the tip = | Q26: =O25+xx0 -> 82.7 | R26: feet
K27: The length of the shadow is growing at a rate of | P27: =Sheet2!F4 -> 2.3 | Q27: feet per second
K28: The tip of the shadow is moving at a rate of | P28: =Sheet2!S5 -> 6.0 | Q28: feet per second
A29: To access/download all the DIGMath Apps for Calculus
A30: Click this link: | C30: DIGMath for Calculus
A32: Created by: Sheldon P. Gordon
A33: Farmingdale State College
A34: Development of this module was supported by the
A35: NSF's Division of Undergraduate Education
A36: under grants DUE-0310123 and DUE-0442160.

Sheet Sheet2
B1: x | C1: t | D1: slope | E1: S | F1: dS/dt | I1: Lamppost | J1: 0 | K1: 0 | O1: x | P1: t | Q1: slope | R1: S | S1: d(S+x)/dt | U1: Lamppost | V1: 0 | W1: 0
J2: 0.1 | K2: =L -> 10 | M2: slope | V2: 0.1 | W2: =LL -> 13 | Y2: slope
A3: 0 | B3: 0.0 | C3: =B3/rate -> 0 | D3: =($K$2-$K$5)/B3 ->  | E3: =L/D3 ->  | F3: =(E4-E3)/0.2 ->  | M3: =($K2-$K5)/x0 -> 0.1629072682 | O3: 0.0 | P3: =O3/rate2 -> 0 | Q3: =($K$2-$K$5)/O3 ->  | R3: =LL/Q3 ->  | S3: =(R4-R3)/0.2+rate2 ->  | Y3: =($W2-$W5)/xx0 -> 0.2933333333
A4: 1 | B4: =B3+0.2 -> 0.2 | C4: 0.06666666667 | D4: =($K$2-$K$5)/B4 -> 21.66666667 | E4: 0.4615384615 | F4: =(E5-E4)/0.2 -> 2.307692308 | I4: Person | J4: =x0 -> 26.6 | K4: 0 | O4: =O3+0.2 -> 0.2 | P4: 0.06666666667 | Q4: =($K$2-$K$5)/O4 -> 21.66666667 | R4: 0.6 | S4: 6 | U4: Person | V4: =xx0 -> 25 | W4: 0
A5: 2 | B5: =B4+0.2 -> 0.4 | C5: 0.1333333333 | D5: 10.83333333 | E5: 0.9230769231 | F5: 2.307692308 | J5: =x0 -> 26.6 | K5: =H/12 -> 5.67 | L5: feet tall | O5: =O4+0.2 -> 0.4 | P5: 0.1333333333 | Q5: 10.83333333 | R5: 1.2 | S5: 6 | V5: =xx0 -> 25 | W5: =HH/12 -> 5.67 | X5: feet tall
A6: 3 | B6: 0.6 | C6: 0.2 | D6: 7.222222222 | E6: 1.384615385 | F6: 2.307692308 | O6: 0.6 | P6: 0.2 | Q6: 7.222222222 | R6: 1.8 | S6: 6
A7: 4 | B7: 0.8 | C7: 0.2666666667 | D7: 5.416666667 | E7: 1.846153846 | F7: 2.307692308 | I7: Line of Sight | O7: 0.8 | P7: 0.2666666667 | Q7: 5.416666667 | R7: 2.4 | S7: 6 | U7: Line of Sight
A8: 5 | B8: 1.0 | C8: 0.3333333333 | D8: 4.333333333 | E8: 2.307692308 | F8: 2.307692308 | J8: 0 | K8: =K2 -> 10 | O8: 1.0 | P8: 0.3333333333 | Q8: 4.333333333 | R8: 3 | S8: 6 | V8: 0 | W8: =W2 -> 13
A9: 6 | B9: 1.2 | C9: 0.4 | D9: 3.611111111 | E9: 2.769230769 | F9: 2.307692308 | J9: =K8/M3 -> 61.4 | K9: 0.00 | N9: x=x0+y0/m | O9: 1.2 | P9: 0.4 | Q9: 3.611111111 | R9: 3.6 | S9: 6 | V9: =W8/Y3 -> 44.3 | W9: 0.00
A10: 7 | B10: 1.4 | C10: 0.4666666667 | D10: 3.095238095 | E10: 3.230769231 | F10: 2.307692308 | O10: 1.4 | P10: 0.4666666667 | Q10: 3.095238095 | R10: 4.2 | S10: 6
A11: 8 | B11: 1.6 | C11: 0.5333333333 | D11: 2.708333333 | E11: 3.692307692 | F11: 2.307692308 | I11: Shadow | J11: =x0 -> 26.6 | K11: 0 | O11: 1.6 | P11: 0.5333333333 | Q11: 2.708333333 | R11: 4.8 | S11: 6 | U11: Shadow | V11: =xx0 -> 25 | W11: 0
A12: 9 | B12: 1.8 | C12: 0.6 | D12: 2.407407407 | E12: 4.153846154 | F12: 2.307692308 | J12: =J9 -> 61.4 | K12: 0 | O12: 1.8 | P12: 0.6 | Q12: 2.407407407 | R12: 5.4 | S12: 6 | V12: =V9 -> 44.3 | W12: 0
A13: 10 | B13: 2.0 | C13: 0.6666666667 | D13: 2.166666667 | E13: 4.615384615 | F13: 2.307692308 | O13: 2.0 | P13: 0.6666666667 | Q13: 2.166666667 | R13: 6 | S13: 6
A14: 11 | B14: 2.2 | C14: 0.7333333333 | D14: 1.96969697 | E14: 5.076923077 | F14: 2.307692308 | I14: First Chart | O14: 2.2 | P14: 0.7333333333 | Q14: 1.96969697 | R14: 6.6 | S14: 6 | U14: First Chart
A15: 12 | B15: 2.4 | C15: 0.8 | D15: 1.805555556 | E15: 5.538461538 | F15: 2.307692308 | I15: Vertical Line | O15: 2.4 | P15: 0.8 | Q15: 1.805555556 | R15: 7.2 | S15: 6 | U15: Vertical Line
A16: 13 | B16: 2.6 | C16: 0.8666666667 | D16: 1.666666667 | E16: 6 | F16: 2.307692308 | J16: =I20 -> 26.6 | K16: 0 | O16: 2.6 | P16: 0.8666666667 | Q16: 1.666666667 | R16: 7.8 | S16: 6 | V16: =U20 -> 25 | W16: 0
A17: 14 | B17: 2.8 | C17: 0.9333333333 | D17: 1.547619048 | E17: 6.461538462 | F17: 2.307692308 | J17: =I20 -> 26.6 | K17: =K5 -> 5.67 | O17: 2.8 | P17: 0.9333333333 | Q17: 1.547619048 | R17: 8.4 | S17: 6 | V17: =U20 -> 25 | W17: =W5 -> 5.67
A18: 15 | B18: 3.0 | C18: 1 | D18: 1.444444444 | E18: 6.923076923 | F18: 2.307692308 | O18: 3.0 | P18: 1 | Q18: 1.444444444 | R18: 9 | S18: 6
A19: 16 | B19: 3.2 | C19: 1.066666667 | D19: 1.354166667 | E19: 7.384615385 | F19: 2.307692308 | I19: Point | O19: 3.2 | P19: 1.066666667 | Q19: 1.354166667 | R19: 9.6 | S19: 6 | U19: Point
A20: 17 | B20: 3.4 | C20: 1.133333333 | D20: 1.274509804 | E20: 7.846153846 | F20: 2.307692308 | I20: =x0 -> 26.6 | J20: 0 | O20: 3.4 | P20: 1.133333333 | Q20: 1.274509804 | R20: 10.2 | S20: 6 | U20: =xx0 -> 25 | V20: 0
A21: 18 | B21: 3.6 | C21: 1.2 | D21: 1.203703704 | E21: 8.307692308 | F21: 2.307692308 | O21: 3.6 | P21: 1.2 | Q21: 1.203703704 | R21: 10.8 | S21: 6
A22: 19 | B22: 3.8 | C22: 1.266666667 | D22: 1.140350877 | E22: 8.769230769 | F22: 2.307692308 | I22: Second Chart | O22: 3.8 | P22: 1.266666667 | Q22: 1.140350877 | R22: 11.4 | S22: 6 | U22: Second Chart
A23: 20 | B23: 4.0 | C23: 1.333333333 | D23: 1.083333333 | E23: 9.230769231 | F23: 2.307692308 | I23: Vertical Line | O23: 4.0 | P23: 1.333333333 | Q23: 1.083333333 | R23: 12 | S23: 6 | U23: Vertical Line
A24: 21 | B24: 4.2 | C24: 1.4 | D24: 1.031746032 | E24: 9.692307692 | F24: 2.307692308 | J24: =I38 -> 26.6 | K24: 0 | O24: 4.2 | P24: 1.4 | Q24: 1.031746032 | R24: 12.6 | S24: 6 | V24: =U38 -> 25 | W24: 0
A25: 22 | B25: 4.4 | C25: 1.466666667 | D25: 0.9848484848 | E25: 10.15384615 | F25: 2.307692308 | J25: =I38 -> 26.6 | K25: =LOOKUP(x0+0.01,B3:B203,E3:E203) -> 61.38461538 | O25: 4.4 | P25: 1.466666667 | Q25: 0.9848484848 | R25: 13.2 | S25: 6 | V25: =U38 -> 25 | W25: =LOOKUP(xx0+0.01,O3:O203,R3:R203) -> 75
A26: 23 | B26: 4.6 | C26: 1.533333333 | D26: 0.9420289855 | E26: 10.61538462 | F26: 2.307692308 | O26: 4.6 | P26: 1.533333333 | Q26: 0.9420289855 | R26: 13.8 | S26: 6
A27: 24 | B27: 4.8 | C27: 1.6 | D27: 0.9027777778 | E27: 11.07692308 | F27: 2.307692308 | I27: Third Chart | O27: 4.8 | P27: 1.6 | Q27: 0.9027777778 | R27: 14.4 | S27: 6 | U27: Third Chart
A28: 25 | B28: 5.0 | C28: 1.666666667 | D28: 0.8666666667 | E28: 11.53846154 | F28: 2.307692308 | I28: Vertical Line | O28: 5.0 | P28: 1.666666667 | Q28: 0.8666666667 | R28: 15 | S28: 6 | U28: Vertical Line
A29: 26 | B29: 5.2 | C29: 1.733333333 | D29: 0.8333333333 | E29: 12 | F29: 2.307692308 | J29: =LOOKUP(x0,B3:B203,C3:C203) -> 8.866666667 | K29: 0 | O29: 5.2 | P29: 1.733333333 | Q29: 0.8333333333 | R29: 15.6 | S29: 6 | V29: =LOOKUP(xx0+0.01,O3:O203,P3:P203) -> 8.333333333 | W29: 0
A30: 27 | B30: 5.4 | C30: 1.8 | D30: 0.8024691358 | E30: 12.46153846 | F30: 2.307692308 | J30: =J29 -> 8.866666667 | K30: =LOOKUP(x0+0.1,B3:B203,E3:E203) -> 61.38461538 | O30: 5.4 | P30: 1.8 | Q30: 0.8024691358 | R30: 16.2 | S30: 6 | V30: =V29 -> 8.333333333 | W30: =LOOKUP(xx0+0.01,O3:O203,R3:R203) -> 75
A31: 28 | B31: 5.6 | C31: 1.866666667 | D31: 0.7738095238 | E31: 12.92307692 | F31: 2.307692308 | O31: 5.6 | P31: 1.866666667 | Q31: 0.7738095238 | R31: 16.8 | S31: 6
A32: 29 | B32: 5.8 | C32: 1.933333333 | D32: 0.7471264368 | E32: 13.38461538 | F32: 2.307692308 | I32: Fourth Chart | O32: 5.8 | P32: 1.933333333 | Q32: 0.7471264368 | R32: 17.4 | S32: 6 | U32: Fourth Chart
A33: 30 | B33: 6.0 | C33: 2 | D33: 0.7222222222 | E33: 13.84615385 | F33: 2.307692308 | I33: Vertical Line | O33: 6.0 | P33: 2 | Q33: 0.7222222222 | R33: 18 | S33: 6 | U33: Vertical Line
A34: 31 | B34: 6.2 | C34: 2.066666667 | D34: 0.6989247312 | E34: 14.30769231 | F34: 2.307692308 | J34: =LOOKUP(x0,B3:B203,C3:C203) -> 8.866666667 | K34: 0 | O34: 6.2 | P34: 2.066666667 | Q34: 0.6989247312 | R34: 18.6 | S34: 6 | V34: =LOOKUP(xx0+0.01,O3:O203,P3:P203) -> 8.333333333 | W34: 0
A35: 32 | B35: 6.4 | C35: 2.133333333 | D35: 0.6770833333 | E35: 14.76923077 | F35: 2.307692308 | J35: =J34 -> 8.866666667 | K35: =LOOKUP(x0,B3:B203,F3:F203) -> 2.307692308 | O35: 6.4 | P35: 2.133333333 | Q35: 0.6770833333 | R35: 19.2 | S35: =(R36-R35)/0.2+rate2 -> 6 | V35: =V34 -> 8.333333333 | W35: =LOOKUP(xx0+0.01,O3:O203,S3:S203) -> 6
A36: 33 | B36: 6.6 | C36: 2.2 | D36: 0.6565656566 | E36: 15.23076923 | F36: 2.307692308 | O36: 6.6 | P36: 2.2 | Q36: 0.6565656566 | R36: 19.8 | S36: 6
A37: 34 | B37: 6.8 | C37: 2.266666667 | D37: 0.637254902 | E37: 15.69230769 | F37: 2.307692308 | I37: Point | O37: 6.8 | P37: 2.266666667 | Q37: 0.637254902 | R37: 20.4 | S37: 6 | U37: Point
A38: 35 | B38: 7.0 | C38: 2.333333333 | D38: 0.619047619 | E38: 16.15384615 | F38: 2.307692308 | I38: =x0 -> 26.6 | J38: 0 | O38: 7.0 | P38: 2.333333333 | Q38: 0.619047619 | R38: 21 | S38: 6 | U38: =xx0 -> 25 | V38: 0
A39: 36 | B39: 7.2 | C39: 2.4 | D39: 0.6018518519 | E39: 16.61538462 | F39: 2.307692308 | O39: 7.2 | P39: 2.4 | Q39: 0.6018518519 | R39: 21.6 | S39: 6
A40: 37 | B40: 7.4 | C40: 2.466666667 | D40: 0.5855855856 | E40: 17.07692308 | F40: 2.307692308 | I40: Point on curve | O40: 7.4 | P40: 2.466666667 | Q40: 0.5855855856 | R40: 22.2 | S40: 6 | U40: Point on curve
A41: 38 | B41: 7.6 | C41: 2.533333333 | D41: 0.5701754386 | E41: 17.53846154 | F41: 2.307692308 | I41: x= | J41: =I20*J14 -> 0 | O41: 7.6 | P41: 2.533333333 | Q41: 0.5701754386 | R41: 22.8 | S41: 6 | U41: x= | V41: =U20*V14 -> 0
A42: 39 | B42: 7.8 | C42: 2.6 | D42: 0.5555555556 | E42: 18 | F42: 2.307692308 | I42: =x0 -> 26.6 | J42: =LOOKUP(x0,B3:B84,C3:C84) -> 5.4 | O42: 7.8 | P42: 2.6 | Q42: 0.5555555556 | R42: 23.4 | S42: 6 | U42: =xx0 -> 25 | V42: =LOOKUP(xx0,O3:O203,P3:P203) -> 8.333333333
A43: 40 | B43: 8.0 | C43: 2.666666667 | D43: 0.5416666667 | E43: 18.46153846 | F43: 2.307692308 | O43: 8.0 | P43: 2.666666667 | Q43: 0.5416666667 | R43: 24 | S43: 6
A44: 41 | B44: 8.2 | C44: 2.733333333 | D44: 0.5284552846 | E44: 18.92307692 | F44: 2.307692308 | O44: 8.2 | P44: 2.733333333 | Q44: 0.5284552846 | R44: 24.6 | S44: 6
A45: 42 | B45: 8.4 | C45: 2.8 | D45: 0.5158730159 | E45: 19.38461538 | F45: 2.307692308 | O45: 8.4 | P45: 2.8 | Q45: 0.5158730159 | R45: 25.2 | S45: 6
A46: 43 | B46: 8.6 | C46: 2.866666667 | D46: 0.503875969 | E46: 19.84615385 | F46: 2.307692308 | O46: 8.6 | P46: 2.866666667 | Q46: 0.503875969 | R46: 25.8 | S46: 6
A47: 44 | B47: 8.8 | C47: 2.933333333 | D47: 0.4924242424 | E47: 20.30769231 | F47: 2.307692308 | O47: 8.8 | P47: 2.933333333 | Q47: 0.4924242424 | R47: 26.4 | S47: 6
A48: 45 | B48: 9.0 | C48: 3 | D48: 0.4814814815 | E48: 20.76923077 | F48: 2.307692308 | O48: 9.0 | P48: 3 | Q48: 0.4814814815 | R48: 27 | S48: 6
A49: 46 | B49: 9.2 | C49: 3.066666667 | D49: 0.4710144928 | E49: 21.23076923 | F49: 2.307692308 | O49: 9.2 | P49: 3.066666667 | Q49: 0.4710144928 | R49: 27.6 | S49: 6
A50: 47 | B50: 9.4 | C50: 3.133333333 | D50: 0.4609929078 | E50: 21.69230769 | F50: 2.307692308 | O50: 9.4 | P50: 3.133333333 | Q50: 0.4609929078 | R50: 28.2 | S50: 6
A51: 48 | B51: 9.6 | C51: 3.2 | D51: 0.4513888889 | E51: 22.15384615 | F51: 2.307692308 | O51: 9.6 | P51: 3.2 | Q51: 0.4513888889 | R51: 28.8 | S51: 6
A52: 49 | B52: 9.8 | C52: 3.266666667 | D52: 0.4421768707 | E52: 22.61538462 | F52: 2.307692308 | O52: 9.8 | P52: 3.266666667 | Q52: 0.4421768707 | R52: 29.4 | S52: 6
A53: 50 | B53: 10.0 | C53: 3.333333333 | D53: 0.4333333333 | E53: 23.07692308 | F53: 2.307692308 | O53: 10.0 | P53: 3.333333333 | Q53: 0.4333333333 | R53: 30 | S53: 6
A54: 51 | B54: 10.2 | C54: 3.4 | D54: 0.4248366013 | E54: 23.53846154 | F54: 2.307692308 | O54: 10.2 | P54: 3.4 | Q54: 0.4248366013 | R54: 30.6 | S54: 6
A55: 52 | B55: 10.4 | C55: 3.466666667 | D55: 0.4166666667 | E55: 24 | F55: 2.307692308 | O55: 10.4 | P55: 3.466666667 | Q55: 0.4166666667 | R55: 31.2 | S55: 6
A56: 53 | B56: 10.6 | C56: 3.533333333 | D56: 0.4088050314 | E56: 24.46153846 | F56: 2.307692308 | O56: 10.6 | P56: 3.533333333 | Q56: 0.4088050314 | R56: 31.8 | S56: 6
A57: 54 | B57: 10.8 | C57: 3.6 | D57: 0.4012345679 | E57: 24.92307692 | F57: 2.307692308 | O57: 10.8 | P57: 3.6 | Q57: 0.4012345679 | R57: 32.4 | S57: 6
A58: 55 | B58: 11.0 | C58: 3.666666667 | D58: 0.3939393939 | E58: 25.38461538 | F58: 2.307692308 | O58: 11.0 | P58: 3.666666667 | Q58: 0.3939393939 | R58: 33 | S58: 6
A59: 56 | B59: 11.2 | C59: 3.733333333 | D59: 0.3869047619 | E59: 25.84615385 | F59: 2.307692308 | O59: 11.2 | P59: 3.733333333 | Q59: 0.3869047619 | R59: 33.6 | S59: 6
A60: 57 | B60: 11.4 | C60: 3.8 | D60: 0.3801169591 | E60: 26.30769231 | F60: 2.307692308 | O60: 11.4 | P60: 3.8 | Q60: 0.3801169591 | R60: 34.2 | S60: 6
A61: 58 | B61: 11.6 | C61: 3.866666667 | D61: 0.3735632184 | E61: 26.76923077 | F61: 2.307692308 | O61: 11.6 | P61: 3.866666667 | Q61: 0.3735632184 | R61: 34.8 | S61: 6
A62: 59 | B62: 11.8 | C62: 3.933333333 | D62: 0.3672316384 | E62: 27.23076923 | F62: 2.307692308 | O62: 11.8 | P62: 3.933333333 | Q62: 0.3672316384 | R62: 35.4 | S62: 6
A63: 60 | B63: 12.0 | C63: 4 | D63: 0.3611111111 | E63: 27.69230769 | F63: 2.307692308 | O63: 12.0 | P63: 4 | Q63: 0.3611111111 | R63: 36 | S63: 6
A64: 61 | B64: 12.2 | C64: 4.066666667 | D64: 0.3551912568 | E64: 28.15384615 | F64: 2.307692308 | O64: 12.2 | P64: 4.066666667 | Q64: 0.3551912568 | R64: 36.6 | S64: 6
A65: 62 | B65: 12.4 | C65: 4.133333333 | D65: 0.3494623656 | E65: 28.61538462 | F65: 2.307692308 | O65: 12.4 | P65: 4.133333333 | Q65: 0.3494623656 | R65: 37.2 | S65: 6
A66: 63 | B66: 12.6 | C66: 4.2 | D66: 0.3439153439 | E66: 29.07692308 | F66: 2.307692308 | O66: 12.6 | P66: 4.2 | Q66: 0.3439153439 | R66: 37.8 | S66: 6
A67: 64 | B67: 12.8 | C67: =B67/rate -> 4.266666667 | D67: 0.3385416667 | E67: =L/D67 -> 29.53846154 | F67: 2.307692308 | O67: 12.8 | P67: =O67/rate2 -> 4.266666667 | Q67: 0.3385416667 | R67: =LL/Q67 -> 38.4 | S67: =(R68-R67)/0.2+rate2 -> 6
A68: 65 | B68: 13.0 | C68: 4.333333333 | D68: =($K$2-$K$5)/B68 -> 0.3333333333 | E68: 30 | F68: =(E69-E68)/0.2 -> 2.307692308 | O68: 13.0 | P68: 4.333333333 | Q68: =($K$2-$K$5)/O68 -> 0.3333333333 | R68: 39 | S68: 6
A69: 66 | B69: =B68+0.2 -> 13.2 | C69: 4.4 | D69: 0.3282828283 | E69: 30.46153846 | F69: 2.307692308 | O69: =O68+0.2 -> 13.2 | P69: 4.4 | Q69: 0.3282828283 | R69: 39.6 | S69: 6
A70: 67 | B70: 13.4 | C70: 4.466666667 | D70: 0.3233830846 | E70: 30.92307692 | F70: 2.307692308 | O70: 13.4 | P70: 4.466666667 | Q70: 0.3233830846 | R70: 40.2 | S70: 6
A71: 68 | B71: 13.6 | C71: 4.533333333 | D71: 0.318627451 | E71: 31.38461538 | F71: 2.307692308 | O71: 13.6 | P71: 4.533333333 | Q71: 0.318627451 | R71: 40.8 | S71: 6
A72: 69 | B72: 13.8 | C72: 4.6 | D72: 0.3140096618 | E72: 31.84615385 | F72: 2.307692308 | O72: 13.8 | P72: 4.6 | Q72: 0.3140096618 | R72: 41.4 | S72: 6
A73: 70 | B73: 14.0 | C73: 4.666666667 | D73: 0.3095238095 | E73: 32.30769231 | F73: 2.307692308 | O73: 14.0 | P73: 4.666666667 | Q73: 0.3095238095 | R73: 42 | S73: 6
A74: 71 | B74: 14.2 | C74: 4.733333333 | D74: 0.3051643192 | E74: 32.76923077 | F74: 2.307692308 | O74: 14.2 | P74: 4.733333333 | Q74: 0.3051643192 | R74: 42.6 | S74: 6
A75: 72 | B75: 14.4 | C75: 4.8 | D75: 0.3009259259 | E75: 33.23076923 | F75: 2.307692308 | O75: 14.4 | P75: 4.8 | Q75: 0.3009259259 | R75: 43.2 | S75: 6
A76: 73 | B76: 14.6 | C76: 4.866666667 | D76: 0.296803653 | E76: 33.69230769 | F76: 2.307692308 | O76: 14.6 | P76: 4.866666667 | Q76: 0.296803653 | R76: 43.8 | S76: 6
A77: 74 | B77: 14.8 | C77: 4.933333333 | D77: 0.2927927928 | E77: 34.15384615 | F77: 2.307692308 | O77: 14.8 | P77: 4.933333333 | Q77: 0.2927927928 | R77: 44.4 | S77: 6
A78: 75 | B78: 15.0 | C78: 5 | D78: 0.2888888889 | E78: 34.61538462 | F78: 2.307692308 | O78: 15.0 | P78: 5 | Q78: 0.2888888889 | R78: 45 | S78: 6
A79: 76 | B79: 15.2 | C79: 5.066666667 | D79: 0.2850877193 | E79: 35.07692308 | F79: 2.307692308 | O79: 15.2 | P79: 5.066666667 | Q79: 0.2850877193 | R79: 45.6 | S79: 6
A80: 77 | B80: 15.4 | C80: 5.133333333 | D80: 0.2813852814 | E80: 35.53846154 | F80: 2.307692308 | O80: 15.4 | P80: 5.133333333 | Q80: 0.2813852814 | R80: 46.2 | S80: 6
A81: 78 | B81: 15.6 | C81: 5.2 | D81: 0.2777777778 | E81: 36 | F81: 2.307692308 | O81: 15.6 | P81: 5.2 | Q81: 0.2777777778 | R81: 46.8 | S81: 6
A82: 79 | B82: 15.8 | C82: 5.266666667 | D82: 0.2742616034 | E82: 36.46153846 | F82: 2.307692308 | O82: 15.8 | P82: 5.266666667 | Q82: 0.2742616034 | R82: 47.4 | S82: 6
A83: 80 | B83: 16.0 | C83: 5.333333333 | D83: 0.2708333333 | E83: 36.92307692 | F83: 2.307692308 | O83: 16.0 | P83: 5.333333333 | Q83: 0.2708333333 | R83: 48 | S83: 6
B84: 16.2 | C84: 5.4 | D84: 0.2674897119 | E84: 37.38461538 | F84: 2.307692308 | O84: 16.2 | P84: 5.4 | Q84: 0.2674897119 | R84: 48.6 | S84: 6
B85: 16.4 | C85: 5.466666667 | D85: 0.2642276423 | E85: 37.84615385 | F85: 2.307692308 | O85: 16.4 | P85: 5.466666667 | Q85: 0.2642276423 | R85: 49.2 | S85: 6
B86: 16.6 | C86: 5.533333333 | D86: 0.2610441767 | E86: 38.30769231 | F86: 2.307692308 | O86: 16.6 | P86: 5.533333333 | Q86: 0.2610441767 | R86: 49.8 | S86: 6
B87: 16.8 | C87: 5.6 | D87: 0.2579365079 | E87: 38.76923077 | F87: 2.307692308 | O87: 16.8 | P87: 5.6 | Q87: 0.2579365079 | R87: 50.4 | S87: 6
B88: 17.0 | C88: 5.666666667 | D88: 0.2549019608 | E88: 39.23076923 | F88: 2.307692308 | O88: 17.0 | P88: 5.666666667 | Q88: 0.2549019608 | R88: 51 | S88: 6
B89: 17.2 | C89: 5.733333333 | D89: 0.2519379845 | E89: 39.69230769 | F89: 2.307692308 | O89: 17.2 | P89: 5.733333333 | Q89: 0.2519379845 | R89: 51.6 | S89: 6
B90: 17.4 | C90: 5.8 | D90: 0.2490421456 | E90: 40.15384615 | F90: 2.307692308 | O90: 17.4 | P90: 5.8 | Q90: 0.2490421456 | R90: 52.2 | S90: 6
B91: 17.6 | C91: 5.866666667 | D91: 0.2462121212 | E91: 40.61538462 | F91: 2.307692308 | O91: 17.6 | P91: 5.866666667 | Q91: 0.2462121212 | R91: 52.8 | S91: 6
B92: 17.8 | C92: 5.933333333 | D92: 0.2434456929 | E92: 41.07692308 | F92: 2.307692308 | O92: 17.8 | P92: 5.933333333 | Q92: 0.2434456929 | R92: 53.4 | S92: 6
B93: 18.0 | C93: 6 | D93: 0.2407407407 | E93: 41.53846154 | F93: 2.307692308 | O93: 18.0 | P93: 6 | Q93: 0.2407407407 | R93: 54 | S93: 6
B94: 18.2 | C94: 6.066666667 | D94: 0.2380952381 | E94: 42 | F94: 2.307692308 | O94: 18.2 | P94: 6.066666667 | Q94: 0.2380952381 | R94: 54.6 | S94: 6
B95: 18.4 | C95: 6.133333333 | D95: 0.2355072464 | E95: 42.46153846 | F95: 2.307692308 | O95: 18.4 | P95: 6.133333333 | Q95: 0.2355072464 | R95: 55.2 | S95: 6
B96: 18.6 | C96: 6.2 | D96: 0.2329749104 | E96: 42.92307692 | F96: 2.307692308 | O96: 18.6 | P96: 6.2 | Q96: 0.2329749104 | R96: 55.8 | S96: 6
B97: 18.8 | C97: 6.266666667 | D97: 0.2304964539 | E97: 43.38461538 | F97: 2.307692308 | O97: 18.8 | P97: 6.266666667 | Q97: 0.2304964539 | R97: 56.4 | S97: 6
B98: 19.0 | C98: 6.333333333 | D98: 0.2280701754 | E98: 43.84615385 | F98: 2.307692308 | O98: 19.0 | P98: 6.333333333 | Q98: 0.2280701754 | R98: 57 | S98: 6
B99: 19.2 | C99: 6.4 | D99: 0.2256944444 | E99: 44.30769231 | F99: 2.307692308 | O99: 19.2 | P99: 6.4 | Q99: 0.2256944444 | R99: 57.6 | S99: =(R100-R99)/0.2+rate2 -> 6
B100: 19.4 | C100: 6.466666667 | D100: 0.2233676976 | E100: 44.76923077 | F100: 2.307692308 | O100: 19.4 | P100: 6.466666667 | Q100: 0.2233676976 | R100: 58.2 | S100: 6
B101: 19.6 | C101: 6.533333333 | D101: 0.2210884354 | E101: 45.23076923 | F101: 2.307692308 | O101: 19.6 | P101: 6.533333333 | Q101: 0.2210884354 | R101: 58.8 | S101: 6
B102: 19.8 | C102: 6.6 | D102: 0.2188552189 | E102: 45.69230769 | F102: 2.307692308 | O102: 19.8 | P102: 6.6 | Q102: 0.2188552189 | R102: 59.4 | S102: 6
B103: 20.0 | C103: 6.666666667 | D103: 0.2166666667 | E103: 46.15384615 | F103: 2.307692308 | O103: 20.0 | P103: 6.666666667 | Q103: 0.2166666667 | R103: 60 | S103: 6
B104: 20.2 | C104: 6.733333333 | D104: 0.2145214521 | E104: 46.61538462 | F104: 2.307692308 | O104: 20.2 | P104: 6.733333333 | Q104: 0.2145214521 | R104: 60.6 | S104: 6
B105: 20.4 | C105: 6.8 | D105: 0.2124183007 | E105: 47.07692308 | F105: 2.307692308 | O105: 20.4 | P105: 6.8 | Q105: 0.2124183007 | R105: 61.2 | S105: 6
B106: 20.6 | C106: 6.866666667 | D106: 0.2103559871 | E106: 47.53846154 | F106: 2.307692308 | O106: 20.6 | P106: 6.866666667 | Q106: 0.2103559871 | R106: 61.8 | S106: 6
B107: 20.8 | C107: 6.933333333 | D107: 0.2083333333 | E107: 48 | F107: 2.307692308 | O107: 20.8 | P107: 6.933333333 | Q107: 0.2083333333 | R107: 62.4 | S107: 6
B108: 21.0 | C108: 7 | D108: 0.2063492063 | E108: 48.46153846 | F108: 2.307692308 | O108: 21.0 | P108: 7 | Q108: 0.2063492063 | R108: 63 | S108: 6
B109: 21.2 | C109: 7.066666667 | D109: 0.2044025157 | E109: 48.92307692 | F109: 2.307692308 | O109: 21.2 | P109: 7.066666667 | Q109: 0.2044025157 | R109: 63.6 | S109: 6
B110: 21.4 | C110: 7.133333333 | D110: 0.2024922118 | E110: 49.38461538 | F110: 2.307692308 | O110: 21.4 | P110: 7.133333333 | Q110: 0.2024922118 | R110: 64.2 | S110: 6
B111: 21.6 | C111: 7.2 | D111: 0.200617284 | E111: 49.84615385 | F111: 2.307692308 | O111: 21.6 | P111: 7.2 | Q111: 0.200617284 | R111: 64.8 | S111: 6
B112: 21.8 | C112: 7.266666667 | D112: 0.1987767584 | E112: 50.30769231 | F112: 2.307692308 | O112: 21.8 | P112: 7.266666667 | Q112: 0.1987767584 | R112: 65.4 | S112: 6
B113: 22.0 | C113: 7.333333333 | D113: 0.196969697 | E113: 50.76923077 | F113: 2.307692308 | O113: 22.0 | P113: 7.333333333 | Q113: 0.196969697 | R113: 66 | S113: 6
B114: 22.2 | C114: 7.4 | D114: 0.1951951952 | E114: 51.23076923 | F114: 2.307692308 | O114: 22.2 | P114: 7.4 | Q114: 0.1951951952 | R114: 66.6 | S114: 6
B115: 22.4 | C115: 7.466666667 | D115: 0.193452381 | E115: 51.69230769 | F115: 2.307692308 | O115: 22.4 | P115: 7.466666667 | Q115: 0.193452381 | R115: 67.2 | S115: 6
B116: 22.6 | C116: 7.533333333 | D116: 0.191740413 | E116: 52.15384615 | F116: 2.307692308 | O116: 22.6 | P116: 7.533333333 | Q116: 0.191740413 | R116: 67.8 | S116: 6
B117: 22.8 | C117: 7.6 | D117: 0.1900584795 | E117: 52.61538462 | F117: 2.307692308 | O117: 22.8 | P117: 7.6 | Q117: 0.1900584795 | R117: 68.4 | S117: 6
B118: 23.0 | C118: 7.666666667 | D118: 0.1884057971 | E118: 53.07692308 | F118: 2.307692308 | O118: 23.0 | P118: 7.666666667 | Q118: 0.1884057971 | R118: 69 | S118: 6
B119: 23.2 | C119: 7.733333333 | D119: 0.1867816092 | E119: 53.53846154 | F119: 2.307692308 | O119: 23.2 | P119: 7.733333333 | Q119: 0.1867816092 | R119: 69.6 | S119: 6
B120: 23.4 | C120: 7.8 | D120: 0.1851851852 | E120: 54 | F120: 2.307692308 | O120: 23.4 | P120: 7.8 | Q120: 0.1851851852 | R120: 70.2 | S120: 6
B121: 23.6 | C121: 7.866666667 | D121: 0.1836158192 | E121: 54.46153846 | F121: 2.307692308 | O121: 23.6 | P121: 7.866666667 | Q121: 0.1836158192 | R121: 70.8 | S121: 6
B122: 23.8 | C122: 7.933333333 | D122: 0.1820728291 | E122: 54.92307692 | F122: 2.307692308 | O122: 23.8 | P122: 7.933333333 | Q122: 0.1820728291 | R122: 71.4 | S122: 6
B123: 24.0 | C123: 8 | D123: 0.1805555556 | E123: 55.38461538 | F123: 2.307692308 | O123: 24.0 | P123: 8 | Q123: 0.1805555556 | R123: 72 | S123: 6
B124: 24.2 | C124: 8.066666667 | D124: 0.1790633609 | E124: 55.84615385 | F124: 2.307692308 | O124: 24.2 | P124: 8.066666667 | Q124: 0.1790633609 | R124: 72.6 | S124: 6
B125: 24.4 | C125: 8.133333333 | D125: 0.1775956284 | E125: 56.30769231 | F125: 2.307692308 | O125: 24.4 | P125: 8.133333333 | Q125: 0.1775956284 | R125: 73.2 | S125: 6
B126: 24.6 | C126: 8.2 | D126: 0.1761517615 | E126: 56.76923077 | F126: 2.307692308 | O126: 24.6 | P126: 8.2 | Q126: 0.1761517615 | R126: 73.8 | S126: 6
B127: 24.8 | C127: 8.266666667 | D127: 0.1747311828 | E127: 57.23076923 | F127: 2.307692308 | O127: 24.8 | P127: 8.266666667 | Q127: 0.1747311828 | R127: 74.4 | S127: 6
B128: 25.0 | C128: 8.333333333 | D128: 0.1733333333 | E128: 57.69230769 | F128: 2.307692308 | O128: 25.0 | P128: 8.333333333 | Q128: 0.1733333333 | R128: 75 | S128: 6
B129: 25.2 | C129: 8.4 | D129: 0.171957672 | E129: 58.15384615 | F129: 2.307692308 | O129: 25.2 | P129: 8.4 | Q129: 0.171957672 | R129: 75.6 | S129: 6
B130: 25.4 | C130: 8.466666667 | D130: 0.1706036745 | E130: 58.61538462 | F130: 2.307692308 | O130: 25.4 | P130: 8.466666667 | Q130: 0.1706036745 | R130: 76.2 | S130: 6
B131: 25.6 | C131: =B131/rate -> 8.533333333 | D131: 0.1692708333 | E131: =L/D131 -> 59.07692308 | F131: 2.307692308 | O131: 25.6 | P131: =O131/rate2 -> 8.533333333 | Q131: 0.1692708333 | R131: =LL/Q131 -> 76.8 | S131: =(R132-R131)/0.2+rate2 -> 6
B132: 25.8 | C132: 8.6 | D132: =($K$2-$K$5)/B132 -> 0.1679586563 | E132: 59.53846154 | F132: =(E133-E132)/0.2 -> 2.307692308 | O132: 25.8 | P132: 8.6 | Q132: =($K$2-$K$5)/O132 -> 0.1679586563 | R132: 77.4 | S132: 6
B133: =B132+0.2 -> 26.0 | C133: 8.666666667 | D133: 0.1666666667 | E133: 60 | F133: 2.307692308 | O133: =O132+0.2 -> 26.0 | P133: 8.666666667 | Q133: 0.1666666667 | R133: 78 | S133: 6
B134: 26.2 | C134: 8.733333333 | D134: 0.165394402 | E134: 60.46153846 | F134: 2.307692308 | O134: 26.2 | P134: 8.733333333 | Q134: 0.165394402 | R134: 78.6 | S134: 6
B135: 26.4 | C135: 8.8 | D135: 0.1641414141 | E135: 60.92307692 | F135: 2.307692308 | O135: 26.4 | P135: 8.8 | Q135: 0.1641414141 | R135: 79.2 | S135: 6
B136: 26.6 | C136: 8.866666667 | D136: 0.1629072682 | E136: 61.38461538 | F136: 2.307692308 | O136: 26.6 | P136: 8.866666667 | Q136: 0.1629072682 | R136: 79.8 | S136: 6
B137: 26.8 | C137: 8.933333333 | D137: 0.1616915423 | E137: 61.84615385 | F137: 2.307692308 | O137: 26.8 | P137: 8.933333333 | Q137: 0.1616915423 | R137: 80.4 | S137: 6
B138: 27.0 | C138: 9 | D138: 0.1604938272 | E138: 62.30769231 | F138: 2.307692308 | O138: 27.0 | P138: 9 | Q138: 0.1604938272 | R138: 81 | S138: 6
B139: 27.2 | C139: 9.066666667 | D139: 0.1593137255 | E139: 62.76923077 | F139: 2.307692308 | O139: 27.2 | P139: 9.066666667 | Q139: 0.1593137255 | R139: 81.6 | S139: 6
B140: 27.4 | C140: 9.133333333 | D140: 0.1581508516 | E140: 63.23076923 | F140: 2.307692308 | O140: 27.4 | P140: 9.133333333 | Q140: 0.1581508516 | R140: 82.2 | S140: 6
B141: 27.6 | C141: 9.2 | D141: 0.1570048309 | E141: 63.69230769 | F141: 2.307692308 | O141: 27.6 | P141: 9.2 | Q141: 0.1570048309 | R141: 82.8 | S141: 6
B142: 27.8 | C142: 9.266666667 | D142: 0.1558752998 | E142: 64.15384615 | F142: 2.307692308 | O142: 27.8 | P142: 9.266666667 | Q142: 0.1558752998 | R142: 83.4 | S142: 6
B143: 28.0 | C143: 9.333333333 | D143: 0.1547619048 | E143: 64.61538462 | F143: 2.307692308 | O143: 28.0 | P143: 9.333333333 | Q143: 0.1547619048 | R143: 84 | S143: 6
B144: 28.2 | C144: 9.4 | D144: 0.1536643026 | E144: 65.07692308 | F144: 2.307692308 | O144: 28.2 | P144: 9.4 | Q144: 0.1536643026 | R144: 84.6 | S144: 6
B145: 28.4 | C145: 9.466666667 | D145: 0.1525821596 | E145: 65.53846154 | F145: 2.307692308 | O145: 28.4 | P145: 9.466666667 | Q145: 0.1525821596 | R145: 85.2 | S145: 6
B146: 28.6 | C146: 9.533333333 | D146: 0.1515151515 | E146: 66 | F146: 2.307692308 | O146: 28.6 | P146: 9.533333333 | Q146: 0.1515151515 | R146: 85.8 | S146: 6
B147: 28.8 | C147: 9.6 | D147: 0.150462963 | E147: 66.46153846 | F147: 2.307692308 | O147: 28.8 | P147: 9.6 | Q147: 0.150462963 | R147: 86.4 | S147: 6
B148: 29.0 | C148: 9.666666667 | D148: 0.1494252874 | E148: 66.92307692 | F148: 2.307692308 | O148: 29.0 | P148: 9.666666667 | Q148: 0.1494252874 | R148: 87 | S148: 6
B149: 29.2 | C149: 9.733333333 | D149: 0.1484018265 | E149: 67.38461538 | F149: 2.307692308 | O149: 29.2 | P149: 9.733333333 | Q149: 0.1484018265 | R149: 87.6 | S149: 6
B150: 29.4 | C150: 9.8 | D150: 0.1473922902 | E150: 67.84615385 | F150: 2.307692308 | O150: 29.4 | P150: 9.8 | Q150: 0.1473922902 | R150: 88.2 | S150: 6
B151: 29.6 | C151: 9.866666667 | D151: 0.1463963964 | E151: 68.30769231 | F151: 2.307692308 | O151: 29.6 | P151: 9.866666667 | Q151: 0.1463963964 | R151: 88.8 | S151: 6
B152: 29.8 | C152: 9.933333333 | D152: 0.1454138702 | E152: 68.76923077 | F152: 2.307692308 | O152: 29.8 | P152: 9.933333333 | Q152: 0.1454138702 | R152: 89.4 | S152: 6
B153: 30.0 | C153: 10 | D153: 0.1444444444 | E153: 69.23076923 | F153: 2.307692308 | O153: 30.0 | P153: 10 | Q153: 0.1444444444 | R153: 90 | S153: 6
B154: 30.2 | C154: 10.06666667 | D154: 0.1434878587 | E154: 69.69230769 | F154: 2.307692308 | O154: 30.2 | P154: 10.06666667 | Q154: 0.1434878587 | R154: 90.6 | S154: 6
B155: 30.4 | C155: 10.13333333 | D155: 0.1425438596 | E155: 70.15384615 | F155: 2.307692308 | O155: 30.4 | P155: 10.13333333 | Q155: 0.1425438596 | R155: 91.2 | S155: 6
B156: 30.6 | C156: 10.2 | D156: 0.1416122004 | E156: 70.61538462 | F156: 2.307692308 | O156: 30.6 | P156: 10.2 | Q156: 0.1416122004 | R156: 91.8 | S156: 6
B157: 30.8 | C157: 10.26666667 | D157: 0.1406926407 | E157: 71.07692308 | F157: 2.307692308 | O157: 30.8 | P157: 10.26666667 | Q157: 0.1406926407 | R157: 92.4 | S157: 6
B158: 31.0 | C158: 10.33333333 | D158: 0.1397849462 | E158: 71.53846154 | F158: 2.307692308 | O158: 31.0 | P158: 10.33333333 | Q158: 0.1397849462 | R158: 93 | S158: 6
B159: 31.2 | C159: 10.4 | D159: 0.1388888889 | E159: 72 | F159: 2.307692308 | O159: 31.2 | P159: 10.4 | Q159: 0.1388888889 | R159: 93.6 | S159: 6
B160: 31.4 | C160: 10.46666667 | D160: 0.1380042463 | E160: 72.46153846 | F160: 2.307692308 | O160: 31.4 | P160: 10.46666667 | Q160: 0.1380042463 | R160: 94.2 | S160: 6
B161: 31.6 | C161: 10.53333333 | D161: 0.1371308017 | E161: 72.92307692 | F161: 2.307692308 | O161: 31.6 | P161: 10.53333333 | Q161: 0.1371308017 | R161: 94.8 | S161: 6
B162: 31.8 | C162: 10.6 | D162: 0.1362683438 | E162: 73.38461538 | F162: 2.307692308 | O162: 31.8 | P162: 10.6 | Q162: 0.1362683438 | R162: 95.4 | S162: 6
B163: 32.0 | C163: 10.66666667 | D163: 0.1354166667 | E163: 73.84615385 | F163: 2.307692308 | O163: 32.0 | P163: 10.66666667 | Q163: 0.1354166667 | R163: 96 | S163: =(R164-R163)/0.2+rate2 -> 6
B164: 32.2 | C164: 10.73333333 | D164: 0.1345755694 | E164: 74.30769231 | F164: 2.307692308 | O164: 32.2 | P164: 10.73333333 | Q164: 0.1345755694 | R164: 96.6 | S164: 6
B165: 32.4 | C165: 10.8 | D165: 0.133744856 | E165: 74.76923077 | F165: 2.307692308 | O165: 32.4 | P165: 10.8 | Q165: 0.133744856 | R165: 97.2 | S165: 6
B166: 32.6 | C166: 10.86666667 | D166: 0.1329243354 | E166: 75.23076923 | F166: 2.307692308 | O166: 32.6 | P166: 10.86666667 | Q166: 0.1329243354 | R166: 97.8 | S166: 6
B167: 32.8 | C167: 10.93333333 | D167: 0.1321138211 | E167: 75.69230769 | F167: 2.307692308 | O167: 32.8 | P167: 10.93333333 | Q167: 0.1321138211 | R167: 98.4 | S167: 6
B168: 33.0 | C168: 11 | D168: 0.1313131313 | E168: 76.15384615 | F168: 2.307692308 | O168: 33.0 | P168: 11 | Q168: 0.1313131313 | R168: 99 | S168: 6
B169: 33.2 | C169: 11.06666667 | D169: 0.1305220884 | E169: 76.61538462 | F169: 2.307692308 | O169: 33.2 | P169: 11.06666667 | Q169: 0.1305220884 | R169: 99.6 | S169: 6
B170: 33.4 | C170: 11.13333333 | D170: 0.129740519 | E170: 77.07692308 | F170: 2.307692308 | O170: 33.4 | P170: 11.13333333 | Q170: 0.129740519 | R170: 100.2 | S170: 6
B171: 33.6 | C171: 11.2 | D171: 0.128968254 | E171: 77.53846154 | F171: 2.307692308 | O171: 33.6 | P171: 11.2 | Q171: 0.128968254 | R171: 100.8 | S171: 6
B172: 33.8 | C172: 11.26666667 | D172: 0.1282051282 | E172: 78 | F172: 2.307692308 | O172: 33.8 | P172: 11.26666667 | Q172: 0.1282051282 | R172: 101.4 | S172: 6
B173: 34.0 | C173: 11.33333333 | D173: 0.1274509804 | E173: 78.46153846 | F173: 2.307692308 | O173: 34.0 | P173: 11.33333333 | Q173: 0.1274509804 | R173: 102 | S173: 6
B174: 34.2 | C174: 11.4 | D174: 0.126705653 | E174: 78.92307692 | F174: 2.307692308 | O174: 34.2 | P174: 11.4 | Q174: 0.126705653 | R174: 102.6 | S174: 6
B175: 34.4 | C175: 11.46666667 | D175: 0.1259689922 | E175: 79.38461538 | F175: 2.307692308 | O175: 34.4 | P175: 11.46666667 | Q175: 0.1259689922 | R175: 103.2 | S175: 6
B176: 34.6 | C176: 11.53333333 | D176: 0.1252408478 | E176: 79.84615385 | F176: 2.307692308 | O176: 34.6 | P176: 11.53333333 | Q176: 0.1252408478 | R176: 103.8 | S176: 6
B177: 34.8 | C177: 11.6 | D177: 0.1245210728 | E177: 80.30769231 | F177: 2.307692308 | O177: 34.8 | P177: 11.6 | Q177: 0.1245210728 | R177: 104.4 | S177: 6
B178: 35.0 | C178: 11.66666667 | D178: 0.1238095238 | E178: 80.76923077 | F178: 2.307692308 | O178: 35.0 | P178: 11.66666667 | Q178: 0.1238095238 | R178: 105 | S178: 6
B179: 35.2 | C179: 11.73333333 | D179: 0.1231060606 | E179: 81.23076923 | F179: 2.307692308 | O179: 35.2 | P179: 11.73333333 | Q179: 0.1231060606 | R179: 105.6 | S179: 6
B180: 35.4 | C180: 11.8 | D180: 0.1224105461 | E180: 81.69230769 | F180: 2.307692308 | O180: 35.4 | P180: 11.8 | Q180: 0.1224105461 | R180: 106.2 | S180: 6
B181: 35.6 | C181: 11.86666667 | D181: 0.1217228464 | E181: 82.15384615 | F181: 2.307692308 | O181: 35.6 | P181: 11.86666667 | Q181: 0.1217228464 | R181: 106.8 | S181: 6
B182: 35.8 | C182: 11.93333333 | D182: 0.1210428305 | E182: 82.61538462 | F182: 2.307692308 | O182: 35.8 | P182: 11.93333333 | Q182: 0.1210428305 | R182: 107.4 | S182: 6
B183: 36.0 | C183: 12 | D183: 0.1203703704 | E183: 83.07692308 | F183: 2.307692308 | O183: 36.0 | P183: 12 | Q183: 0.1203703704 | R183: 108 | S183: 6
B184: 36.2 | C184: 12.06666667 | D184: 0.1197053407 | E184: 83.53846154 | F184: 2.307692308 | O184: 36.2 | P184: 12.06666667 | Q184: 0.1197053407 | R184: 108.6 | S184: 6
B185: 36.4 | C185: 12.13333333 | D185: 0.119047619 | E185: 84 | F185: 2.307692308 | O185: 36.4 | P185: 12.13333333 | Q185: 0.119047619 | R185: 109.2 | S185: 6
B186: 36.6 | C186: 12.2 | D186: 0.1183970856 | E186: 84.46153846 | F186: 2.307692308 | O186: 36.6 | P186: 12.2 | Q186: 0.1183970856 | R186: 109.8 | S186: 6
B187: 36.8 | C187: 12.26666667 | D187: 0.1177536232 | E187: 84.92307692 | F187: 2.307692308 | O187: 36.8 | P187: 12.26666667 | Q187: 0.1177536232 | R187: 110.4 | S187: 6
B188: 37.0 | C188: 12.33333333 | D188: 0.1171171171 | E188: 85.38461538 | F188: 2.307692308 | O188: 37.0 | P188: 12.33333333 | Q188: 0.1171171171 | R188: 111 | S188: 6
B189: 37.2 | C189: 12.4 | D189: 0.1164874552 | E189: 85.84615385 | F189: 2.307692308 | O189: 37.2 | P189: 12.4 | Q189: 0.1164874552 | R189: 111.6 | S189: 6
B190: 37.4 | C190: 12.46666667 | D190: 0.1158645276 | E190: 86.30769231 | F190: 2.307692308 | O190: 37.4 | P190: 12.46666667 | Q190: 0.1158645276 | R190: 112.2 | S190: 6
B191: 37.6 | C191: 12.53333333 | D191: 0.115248227 | E191: 86.76923077 | F191: 2.307692308 | O191: 37.6 | P191: 12.53333333 | Q191: 0.115248227 | R191: 112.8 | S191: 6
B192: 37.8 | C192: 12.6 | D192: 0.114638448 | E192: 87.23076923 | F192: 2.307692308 | O192: 37.8 | P192: 12.6 | Q192: 0.114638448 | R192: 113.4 | S192: 6
B193: 38.0 | C193: 12.66666667 | D193: 0.1140350877 | E193: 87.69230769 | F193: 2.307692308 | O193: 38.0 | P193: 12.66666667 | Q193: 0.1140350877 | R193: 114 | S193: 6
B194: 38.2 | C194: 12.73333333 | D194: 0.1134380454 | E194: 88.15384615 | F194: 2.307692308 | O194: 38.2 | P194: 12.73333333 | Q194: 0.1134380454 | R194: 114.6 | S194: 6
B195: 38.4 | C195: =B195/rate -> 12.8 | D195: 0.1128472222 | E195: =L/D195 -> 88.61538462 | F195: 2.307692308 | O195: 38.4 | P195: =O195/rate2 -> 12.8 | Q195: 0.1128472222 | R195: =LL/Q195 -> 115.2 | S195: =(R196-R195)/0.2+rate2 -> 6
B196: 38.6 | C196: 12.86666667 | D196: =($K$2-$K$5)/B196 -> 0.1122625216 | E196: 89.07692308 | F196: =(E197-E196)/0.2 -> 2.307692308 | O196: 38.6 | P196: 12.86666667 | Q196: =($K$2-$K$5)/O196 -> 0.1122625216 | R196: 115.8 | S196: 6
B197: =B196+0.2 -> 38.8 | C197: 12.93333333 | D197: 0.1116838488 | E197: 89.53846154 | F197: 2.307692308 | O197: =O196+0.2 -> 38.8 | P197: 12.93333333 | Q197: 0.1116838488 | R197: 116.4 | S197: 6
B198: 39.0 | C198: 13 | D198: 0.1111111111 | E198: 90 | F198: 2.307692308 | O198: 39.0 | P198: 13 | Q198: 0.1111111111 | R198: 117 | S198: 6
B199: 39.2 | C199: 13.06666667 | D199: 0.1105442177 | E199: 90.46153846 | F199: 2.307692308 | O199: 39.2 | P199: 13.06666667 | Q199: 0.1105442177 | R199: 117.6 | S199: 6
B200: 39.4 | C200: 13.13333333 | D200: 0.1099830795 | E200: 90.92307692 | F200: 2.307692308 | O200: 39.4 | P200: 13.13333333 | Q200: 0.1099830795 | R200: 118.2 | S200: 6
... 3 more rows
